fUSD/lending_fUSD_20250226
["ID","MTS","AMOUNT","RATE_DAILY","PERIOD"]
[354488380,1740528660558,-1908.05,0.00046849,120]
[354488381,1740528660571,-802.7,0.00046849,120]
[354488382,1740528660589,-500.0,0.00046849,120]
[354488383,1740528660602,-500.0,0.00046849,120]
[354488384,1740528660611,-822.98,0.00046849,120]
[354488385,1740528660622,-500.0,0.00046849,120]
[354488386,1740528660632,-500.0,0.00046849,120]
[354488387,1740528660642,-1443.39,0.00046849,120]
[354488388,1740528660652,-2071.91,0.00046849,120]
[354488389,1740528660661,-1485.21,0.00046849,120]
[354488390,1740528660671,-500.0,0.00046849,120]
[354488391,1740528660681,-500.0,0.00046849,120]
[354488392,1740528660691,-554.53,0.00046849,120]
[354488393,1740528660700,-787.59,0.00046849,120]
[354488394,1740528660710,-500.0,0.00046849,120]
[354488395,1740528660719,-1345.01,0.00046849,120]
[354488396,1740528660730,-766.94,0.00046849,120]
[354488397,1740528660740,-500.0,0.00046849,120]
[354488398,1740528660749,-500.0,0.00046849,7]
[354488399,1740528660759,-1376.68,0.00046849,120]
[354488400,1740528660770,-560.93,0.00046849,120]
[354488401,1740528660780,-500.0,0.00046849,120]
[354488402,1740528660790,-804.69,0.00046849,120]
[354488403,1740528660799,-1413.44,0.00046849,120]
[354488404,1740528660809,-689.03,0.00046849,120]
[354488405,1740528660819,-555.65288015,0.00046849,120]
[354488406,1740528660829,-841.64,0.00046849,120]
[354488407,1740528660839,-2648.78,0.00046849,120]
[354488408,1740528660849,-594.83760305,0.00046849,120]
[354488409,1740528660858,-635.67,0.00046849,120]
[354488410,1740528660868,-840.89,0.00046849,120]
[354488411,1740528660878,-1566.95,0.00046849,120]
[354488412,1740528660888,-500.0,0.00046849,120]
[354488413,1740528660897,-500.0,0.00046849,120]
[354488414,1740528660907,-797.38,0.00046849,120]
[354488415,1740528660917,-1963.7,0.00046849,120]
[354488416,1740528660927,-627.68,0.00046849,120]
[354488417,1740528660936,-500.0,0.00046849,120]
[354488418,1740528660946,-1015.97,0.00046849,120]
[354488419,1740528660955,-564.76,0.00046849,120]
[354488420,1740528660964,-1153.02,0.00046849,120]
[354488421,1740528660974,-500.0,0.00046849,120]
[354488422,1740528660983,-2104.77,0.00046849,120]
[354488423,1740528660993,-884.78,0.00046849,120]
[354488424,1740528661003,-500.0,0.00046849,120]
[354488425,1740528661013,-514.7777269,0.00046849,120]
[354488426,1740528661023,-2568.31,0.00046849,120]
[354488427,1740528661032,-4836.13,0.00046849,120]
[354488428,1740528661042,-554.4,0.00046849,120]
[354488429,1740528661051,-727.71,0.00046849,120]
[354488430,1740528661061,-4435.43,0.00046849,120]
[354488431,1740528661070,-500.0,0.00046849,120]
[354488432,1740528661080,-642.54,0.00046849,120]
[354488433,1740528661091,-1801.97,0.00046849,120]
[354488434,1740528661100,-580.38,0.00046849,120]
[354488435,1740528661110,-500.0,0.00046849,120]
[354488436,1740528661119,-520.27,0.00046849,120]
[354488437,1740528661128,-770.38,0.00046849,120]
[354488438,1740528661138,-1592.2,0.00046849,7]
[354488439,1740528661147,-500.0,0.00046849,120]
[354488440,1740528661157,-500.0,0.00046849,120]
[354488441,1740528661166,-1547.16,0.00046849,120]
[354488442,1740528661176,-1541.42,0.00046849,120]
[354488443,1740528661186,-626.87,0.00046849,120]
[354488444,1740528661195,-500.0,0.00046849,120]
[354488445,1740528661205,-597.07,0.00046849,120]
[354488446,1740528661215,-500.0,0.00046849,120]
[354488447,1740528661224,-1745.28,0.00046849,120]
[354488448,1740528661234,-2670.5,0.00046849,120]
[354488449,1740528661243,-731.4,0.00046849,120]
[354488450,1740528661253,-2715.31,0.00046849,120]
[354488451,1740528661263,-729.64,0.00046849,120]
[354488452,1740528661272,-647.95,0.00046849,40]
[354488453,1740528661281,-2446.09,0.00046849,120]
[354488454,1740528661291,-1330.74,0.00046849,120]
[354488455,1740528661300,-1399.65,0.00046849,120]
[354488456,1740528661310,-560.44,0.00046849,120]
[354488457,1740528661319,-990.01,0.00046849,120]
[354488458,1740528661329,-1064.05,0.00046849,120]
[354488459,1740528661338,-500.0,0.00046849,120]
[354488460,1740528661348,-3800.0,0.00046849,120]
[354488461,1740528661358,-1732.59,0.00046849,120]
[354488462,1740528661367,-1345.68,0.00046849,120]
[354488463,1740528661376,-500.0,0.00046849,120]
[354488464,1740528661386,-4413.97,0.00046849,120]
[354488465,1740528661396,-1318.02,0.00046849,120]
[354488466,1740528661405,-1651.9,0.00046849,120]
[354488467,1740528661416,-3477.91,0.00046849,120]
[354488468,1740528661425,-2162.65,0.00046849,120]
[354488469,1740528661435,-343.99695749,0.00046849,120]
[354488470,1740528661444,-955.19,0.00046849,120]
[354488471,1740528661453,-500.0,0.00046849,120]
[354488472,1740528661463,-500.0,0.00046849,120]
[354488473,1740528661472,-500.0,0.00046849,120]
[354488474,1740528661482,-1303.03,0.00046849,120]
[354488475,1740528661491,-500.0,0.00046849,120]
[354488476,1740528661501,-1895.19,0.00046849,120]
[354488477,1740528661511,-151.0,0.00046849,14]
[354488478,1740528661520,-1347.67,0.00046849,120]
[354488479,1740528661531,-3120.89,0.00046849,120]
[354488480,1740528661540,-500.0,0.00046849,120]
[354488481,1740528661550,-2644.82,0.00046849,120]
[354488482,1740528661562,-1960.65,0.00046849,2]
[354488483,1740528661573,-2814.86,0.00046849,120]
[354488484,1740528661583,-500.0,0.00046849,120]
[354488485,1740528661593,-500.0,0.00046849,120]
[354488486,1740528661603,-500.0,0.00046849,120]
[354488487,1740528661613,-2542.05,0.00046849,120]
[354488488,1740528661622,-2162.48,0.00046849,120]
[354488489,1740528661632,-923.37,0.00046849,120]
[354488490,1740528661642,-734.76,0.00046849,120]
[354488491,1740528661653,-500.0,0.00046849,120]
[354488492,1740528661663,-1531.37,0.00046849,120]
[354488493,1740528661673,-2484.16,0.00046849,120]
[354488494,1740528661683,-5531.5,0.00046849,120]
[354488495,1740528661693,-1155.52,0.00046849,120]
[354488496,1740528661703,-721.36,0.00046849,120]
[354488497,1740528661712,-760.71,0.00046849,120]
[354488498,1740528661722,-500.0,0.00046849,120]
[354488499,1740528661732,-500.0,0.00046849,120]
[354488500,1740528661744,-500.0,0.00046849,120]
[354488501,1740528661754,-841.62,0.00046849,120]
[354488502,1740528661764,-813.39,0.00046849,120]
[354488503,1740528661775,-554.37,0.00046849,120]
[354488504,1740528661784,-2478.61,0.00046849,120]
[354488505,1740528661795,-842.69,0.00046849,120]
[354488506,1740528661804,-628.58,0.00046849,120]
[354488507,1740528661814,-879.7,0.00046849,120]
[354488508,1740528661824,-802.56,0.00046849,120]
[354488509,1740528661834,-666.74,0.00046849,120]
[354488510,1740528661843,-220.961458,0.00046849,5]
[354488511,1740528661853,-2031.7,0.00046849,120]
[354488512,1740528661863,-797.41,0.00046849,120]
[354488513,1740528661872,-4212.33,0.00046849,120]
[354488514,1740528661882,-504.72,0.00046849,120]
[354488515,1740528661891,-957.96,0.00046849,120]
[354488516,1740528661901,-6958.76,0.00046849,120]
[354488517,1740528661911,-500.0,0.00046849,120]
[354488518,1740528661921,-2153.44,0.00046849,120]
[354488519,1740528661931,-316.624862,0.00046849,14]
[354488520,1740528661943,-710.97,0.00046849,120]
[354488521,1740528661952,-2539.96,0.00046849,120]
[354488522,1740528661963,-1764.5,0.00046849,120]
[354488523,1740528661972,-500.0,0.00046849,120]
[354488524,1740528661982,-354.57,0.00046849,120]
[354488525,1740528661992,-316.624862,0.00046849,14]
[354488526,1740528662153,-580.24,0.00046849,120]
[354488527,1740528662163,-500.0,0.00046849,120]
[354488528,1740528662173,-3525.07,0.00046849,120]
[354488529,1740528662183,-151.0,0.00046849,14]
[354488530,1740528662193,-927.56,0.00046849,120]
[354488531,1740528662203,-782.43,0.00046849,120]
[354488532,1740528662213,-5231.81,0.00046849,120]
[354488533,1740528662223,-12648.42,0.00046849,120]
[354488534,1740528662232,-1132.9,0.00046849,120]
[354488535,1740528662242,-500.0,0.00046849,120]
[354488536,1740528662251,-500.0,0.00046849,120]
[354488537,1740528662261,-500.0,0.00046849,120]
[354488538,1740528662271,-1633.3,0.00046849,120]
[354488539,1740528662281,-500.0,0.00046849,120]
[354488540,1740528662290,-758.33,0.00046849,120]
[354488541,1740528662299,-500.0,0.00046849,120]
[354488542,1740528662309,-500.0,0.00046849,120]
[354488543,1740528662318,-316.896765,0.00046849,120]
[354488544,1740528662327,-151.0,0.00046849,14]
[354488545,1740528662337,-2380.44,0.00046849,120]
[354488546,1740528662346,-1719.93,0.00046849,120]
[354488547,1740528662356,-2663.94,0.00046849,120]
[354488548,1740528662365,-1070.81,0.00046849,120]
[354488549,1740528662374,-3252.05,0.00046849,120]
[354488550,1740528662384,-151.0,0.00046849,14]
[354488551,1740528662393,-1786.0,0.00046849,20]
[354488552,1740528662403,-1951.66,0.00046849,120]
[354488553,1740528662415,-3814.4,0.00046849,120]
[354488554,1740528662426,-500.0,0.00046849,120]
[354488555,1740528662436,-1791.75,0.00046849,120]
[354488556,1740528662446,-4673.13,0.00046849,120]
[354488557,1740528662456,-500.0,0.00046849,120]
[354488558,1740528662466,-1375.09,0.00046849,120]
[354488559,1740528662475,-5641.87,0.00046849,120]
[354488560,1740528662485,-1361.72,0.00046849,120]
[354488561,1740528662495,-2067.31,0.00046849,120]
[354488562,1740528662504,-151.0,0.00046849,14]
[354488563,1740528662514,-1012.49,0.00046849,120]
[354488564,1740528662524,-500.0,0.00046849,120]
[354488565,1740528662533,-500.0,0.00046849,120]
[354488566,1740528662543,-500.0,0.00046849,120]
[354488567,1740528662552,-2727.6,0.00046849,120]
[354488568,1740528662566,-2057.14,0.00046849,120]
[354488569,1740528662576,-2926.31,0.00046849,120]
[354488570,1740528662586,-500.0,0.00046849,120]
[354488571,1740528662595,-3391.79,0.00046849,120]
[354488572,1740528662605,-500.0,0.00046849,120]
[354488573,1740528662615,-500.0,0.00046849,120]
[354488574,1740528662624,-500.0,0.00046849,120]
[354488575,1740528662634,-3284.97,0.00046849,120]
[354488576,1740528662645,-151.0,0.00046849,14]
[354488577,1740528662655,-2442.902977,0.00046849,14]
[354488578,1740528662664,-4317.87,0.00046849,120]
[354488579,1740528662688,-1113.39,0.00046849,120]
[354488580,1740528662698,-2818.08,0.00046849,120]
[354488581,1740528662707,-3086.66,0.00046849,120]
[354488582,1740528662717,-2401.9,0.00046849,120]
[354488583,1740528662726,-500.0,0.00046849,120]
[354488584,1740528662736,-356.90340469,0.00046849,120]
[354488585,1740528662746,-712.15,0.00046849,120]
[354488586,1740528662756,-500.0,0.00046849,120]
[354488587,1740528662766,-2442.902977,0.00046849,14]
[354488588,1740528662775,-1459.73,0.00046849,120]
[354488589,1740528662784,-500.0,0.00046849,120]
[354488590,1740528662794,-661.5,0.00046849,120]
[354488591,1740528662803,-1040.28,0.00046849,120]
[354488592,1740528662813,-3542.82,0.00046849,120]
[354488593,1740528662822,-4737.16,0.00046849,120]
[354488594,1740528662831,-1123.87,0.00046849,120]
[354488595,1740528662841,-2977.83,0.00046849,120]
[354488596,1740528662851,-520.39,0.00046849,120]
[354488597,1740528662861,-500.0,0.00046849,120]
[354488598,1740528662870,-524.88,0.00046849,120]
[354488599,1740528662880,-500.0,0.00046849,120]
[354488600,1740528662889,-500.0,0.00046849,120]
[354488601,1740528662898,-1797.74,0.00046849,120]
[354488602,1740528662907,-1474.45,0.00046849,120]
[354488603,1740528662917,-4445.56,0.00046849,120]
[354488604,1740528662926,-1112.4,0.00046849,120]
[354488605,1740528662935,-500.0,0.00046849,120]
[354488606,1740528662945,-500.0,0.00046849,120]
[354488607,1740528662954,-4150.21,0.00046849,120]
[354488608,1740528662963,-4402.04,0.00046849,120]
[354488609,1740528662974,-500.0,0.00046849,120]
[354488610,1740528662983,-1000.0,0.00046849,120]
[354488611,1740528662993,-619.84,0.00046849,120]
[354488612,1740528663003,-164.76542894,0.00046849,120]
[354488613,1740528663012,-787.38,0.00046849,120]
[354488614,1740528663023,-500.0,0.00046849,120]
[354488615,1740528663032,-500.0,0.00046849,120]
[354488616,1740528663042,-4381.41,0.00046849,120]
[354488617,1740528663053,-151.0,0.00046849,14]
[354488618,1740528663062,-3229.09,0.00046849,120]
[354488619,1740528663072,-5922.96,0.00046849,120]
[354488620,1740528663081,-3190.86,0.00046849,120]
[354488621,1740528663091,-2587.36,0.00046849,120]
[354488622,1740528663102,-513.10163471,0.00046849,120]
[354488623,1740528663112,-1717.51,0.00046849,120]
[354488624,1740528663123,-500.0,0.00046849,120]
[354488625,1740528663134,-500.0,0.00046849,120]
[354488626,1740528663144,-3866.35,0.00046849,120]
[354488627,1740528663155,-831.54,0.00046849,120]
[354488628,1740528663165,-2773.54,0.00046849,120]
[354488629,1740528663175,-817.17,0.00046849,120]
[354488630,1740528663185,-1969.84,0.00046849,120]
[354488631,1740528663194,-1653.06,0.00046849,120]
[354488632,1740528663204,-500.0,0.00046849,120]
[354488633,1740528663213,-1355.05,0.00046849,120]
[354488634,1740528663223,-500.0,0.00046849,120]
[354488635,1740528663233,-3825.14,0.00046849,120]
[354488636,1740528663243,-1529.42,0.00046849,120]
[354488637,1740528663253,-2513.7,0.00046849,120]
[354488638,1740528663263,-698.34,0.00046849,120]
[354488639,1740528663273,-1686.55,0.00046849,120]
[354488640,1740528663283,-6617.28,0.00046849,120]
[354488641,1740528663292,-1366.37,0.00046849,120]
[354488642,1740528663302,-4243.37,0.00046849,120]
[354488643,1740528663312,-829.51,0.00046849,120]
[354488644,1740528663323,-516.68,0.00046849,120]
[354488645,1740528663334,-3210.74,0.00046849,120]
[354488646,1740528663344,-4494.18,0.00046849,120]
[354488647,1740528663354,-1604.63,0.00046849,120]
[354488648,1740528663363,-500.0,0.00046849,120]
[354488649,1740528663373,-1275.38,0.00046849,120]
[354488650,1740528663383,-1070.48,0.00046849,120]
[354488651,1740528663392,-3544.69,0.00046849,120]
[354488652,1740528663402,-500.0,0.00046849,120]
[354488653,1740528663412,-5834.41,0.00046849,120]
[354488654,1740528663421,-151.0,0.00046849,14]
[354488655,1740528663431,-2302.86,0.00046849,120]
[354488656,1740528663441,-1150.56,0.00046849,7]
[354488657,1740528663450,-500.0,0.00046849,120]
[354488658,1740528663460,-500.0,0.00046849,120]
[354488659,1740528663470,-4622.64,0.00046849,120]
[354488660,1740528663480,-5542.27,0.00046849,120]
[354488661,1740528663489,-500.0,0.00046849,120]
[354488662,1740528663499,-1998.5,0.00046849,120]
[354488663,1740528663509,-7440.36,0.00046849,100]
[354488664,1740528663519,-1708.81,0.00046849,120]
[354488665,1740528663529,-1025.55,0.00046849,120]
[354488666,1740528663538,-151.0,0.00046849,14]
[354488667,1740528663547,-500.0,0.00046849,120]
[354488668,1740528663557,-867.37,0.00046849,120]
[354488669,1740528663569,-3934.57,0.00046849,120]
[354488670,1740528663579,-2685.44,0.00046849,120]
[354488671,1740528663589,-500.0,0.00046849,120]
[354488672,1740528663600,-500.0,0.00046849,120]
[354488673,1740528663611,-511.01,0.00046849,120]
[354488674,1740528663620,-1362.8,0.00046849,120]
[354488675,1740528663630,-5753.49,0.00046849,120]
[354488676,1740528663641,-1113.24,0.00046849,120]
[354488677,1740528663651,-500.0,0.00046849,120]
[354488678,1740528663664,-600.0,0.00046849,120]
[354488679,1740528663675,-500.0,0.00046849,120]
[354488680,1740528663685,-500.0,0.00046849,120]
[354488681,1740528663695,-2422.18,0.00046849,120]
[354488682,1740528663705,-1226.28,0.00046849,120]
[354488683,1740528663715,-500.0,0.00046849,120]
[354488684,1740528663725,-500.0,0.00046849,120]
[354488685,1740528663736,-3029.05,0.00046849,120]
[354488686,1740528663745,-932.38,0.00046849,120]
[354488687,1740528663755,-407.23549707,0.00046849,120]
[354488688,1740528663765,-694.95,0.00046849,120]
[354488689,1740528663775,-1025.16,0.00046849,120]
[354488690,1740528663785,-5415.12,0.00046849,120]
[354488691,1740528663796,-1624.17,0.00046849,120]
[354488692,1740528663806,-500.0,0.00046849,120]
[354488693,1740528663817,-500.0,0.00046849,120]
[354488694,1740528663826,-500.0,0.00046849,120]
[354488695,1740528663836,-500.0,0.00046849,120]
[354488696,1740528663845,-1855.31,0.00046849,120]
[354488697,1740528663855,-151.0,0.00046849,14]
[354488698,1740528663865,-1684.88,0.00046849,120]
[354488699,1740528663875,-4941.22,0.00046849,120]
[354488700,1740528663885,-583.02,0.00046849,120]
[354488701,1740528663896,-4041.14,0.00046849,120]
[354488702,1740528663906,-595.61,0.00046849,120]
[354488703,1740528663916,-4442.49,0.00046849,120]
[354488704,1740528663925,-500.0,0.00046849,120]
[354488705,1740528663935,-3346.23,0.00046849,120]
[354488706,1740528663944,-500.0,0.00046849,120]
[354488707,1740528663954,-500.0,0.00046849,120]
[354488708,1740528663964,-2805.31,0.00046849,120]
[354488709,1740528663974,-500.0,0.00046849,120]
[354488710,1740528663984,-500.0,0.00046849,30]
[354488711,1740528663993,-1215.18,0.00046849,120]
[354488712,1740528664004,-4035.55,0.00046849,120]
[354488713,1740528664014,-6257.77,0.00046849,120]
[354488714,1740528664026,-3264.16,0.00046849,120]
[354488715,1740528664035,-1332.27,0.00046849,120]
[354488716,1740528664045,-500.0,0.00046849,120]
[354488717,1740528664055,-5019.19,0.00046849,120]
[354488718,1740528664065,-500.0,0.00046849,120]
[354488719,1740528664075,-295.56995094,0.00046854,120]
[354488720,1740528664087,-295.56995094,0.00046877,120]
[354488721,1740528664098,-1845.36290202,0.00046899,15]
[354488722,1740528664108,-600.0,0.000469,17]
[354488723,1740528664118,-295.56995094,0.000469,120]
[354488724,1740528664127,-184.17687885,0.000469,120]
[354488725,1740528664137,-9070.57251012,0.000469,2]
[354488726,1740528664146,-346.01175196,0.000469,2]
[354488727,1740528664156,-150.0,0.00046912,7]
[354488728,1740528664166,-1000.0,0.00046935,8]
[354488729,1740528664175,-500.0,0.00046973,10]
[354488730,1740528664185,-1845.36290202,0.00046986,15]
[354488731,1740528664195,-167.0,0.0004699,14]
[354488732,1740528664205,-245.39,0.0004699,14]
[354488733,1740528664216,-167.81251703,0.0004699,14]
[354488734,1740528664226,-1107.33,0.00046999,120]
[354488735,1740528664236,-1107.33,0.00046999,120]
[354488736,1740528664246,-1107.33,0.00046999,120]
[354488737,1740528664256,-1107.33,0.00046999,120]
[354488738,1740528664267,-500.0,0.00046999,120]
[354488739,1740528664276,-500.0,0.00046999,120]
[354488740,1740528664285,-489.83106722,0.00047,71]
[354488741,1740528664296,-132652.47675362,0.00047,50]
[354488742,1740528665041,-322.3,0.00047,50]
[354488743,1740528665052,-297.16,0.00047,50]
[354488744,1740528665064,-12338.0,0.00047,50]
[354488745,1740528665079,-3017.67413707,0.00047,50]
[354488746,1740528665092,-4296.75088854,0.00047,50]
[354488747,1740528665103,-16837.73352991,0.00047,50]
[354488748,1740528665253,-500.0,0.00046575,120]
[354488749,1740528665262,-40031.55046532,0.00047,50]
[354488750,1740528665275,-16344.51668327,0.00047,50]
[354488751,1740528665294,-500.0,0.00046849,120]
[354488752,1740528665306,-11268.82573503,0.00047,50]
[354488753,1740528665318,-1964.23584355,0.00047,50]
[354488754,1740528665330,-84583.00454562,0.00047,50]
[354488755,1740528665341,-650.59750741,0.00047,50]
[354488756,1740528665355,-544.14569313,0.00047,50]
[354488757,1740528665366,-26664.3,0.00047,50]
[354488758,1740528665377,-1145.69371037,0.00047,50]
[354488759,1740528665387,-417.95823573,0.00047,50]
[354488761,1740529497139,-361.3785,0.00019688,7]
[354488762,1740529497163,-150.0,0.00024219,20]
[354488763,1740529508546,96026.12143442,0.0001,2]
[354488764,1740529555312,2768.36781995,0.0002399,2]
[354488765,1740529636621,205.0,9.8e-05,2]
[354488766,1740529679799,102139.64571834,0.0001,2]
[354488767,1740529690264,20955.47317499,9.9e-05,2]
[354488768,1740529711398,794.06291161,9.828e-05,2]
[354488778,1740529811462,325.2407,0.00019688,7]
[354488780,1740529832191,-183.73,0.00026849,2]
[354488781,1740529832202,-1829.64165454,0.00031,2]
[354488782,1740529832212,-999.999999,0.0003121,2]
[354488783,1740529832222,-500.0,0.00033,15]
[354488784,1740529832232,-150.0,0.00033689,120]
[354488785,1740529832242,-400.38,0.00035,5]
[354488786,1740529832252,-150.0,0.00037723,30]
[354488787,1740529832262,-1070.55028248,0.00037723,30]
[354488788,1740529832272,-1791.30472765,0.0004,4]
[354488789,1740529832282,-218.64235302,0.00042399,2]
[354488790,1740529832292,-17586.24548014,0.000425,30]
[354488791,1740529832302,-4186.9,0.00043831,2]
[354488792,1740529832312,-355.06,0.00043831,2]
[354488793,1740529832322,-587.49883253,0.00043831,30]
[354488794,1740529832333,-216.55512551,0.000439,9]
[354488795,1740529832343,-8000.0,0.00043987,31]
[354488796,1740529832356,-500.0,0.00044,15]
[354488797,1740529832366,-1307.16,0.00044821,120]
[354488798,1740529832376,-354.53,0.00045225,2]
[354488799,1740529832386,-1000.0,0.00045324,2]
[354488800,1740529832396,-164.75,0.0004534,2]
[354488801,1740529832406,-798.41,0.00045348,2]
[354488802,1740529832417,-331.92,0.00045474,120]
[354488803,1740529832426,-372.09,0.00045504,2]
[354488804,1740529832437,-180.44854397,0.00045645,30]
[354488805,1740529832447,-639.22,0.00045645,2]
[354488806,1740529832457,-2154.70234914,0.00045747,8]
[354488807,1740529832467,-150.0,0.00045753,30]
[354488808,1740529832477,-150.0,0.00045753,30]
[354488809,1740529832486,-150.2,0.00045753,30]
[354488810,1740529832496,-150.0,0.00045753,30]
[354488811,1740529832506,-150.0,0.00045753,30]
[354488812,1740529832516,-150.0,0.00045753,30]
[354488813,1740529832526,-150.0,0.00045753,30]
[354488814,1740529832536,-1881.09659242,0.00045874,8]
[354488815,1740529832569,-273.60575672,0.00045874,8]
[354488816,1740529832579,-137.09424368,0.00045947,2]
[354488817,1740529832719,-2655.0,0.00045947,2]
[354488818,1740529838132,-2308.68890004,0.00045947,2]
[354488819,1740529838142,-1473.43,0.00045948,120]
[354488820,1740529838151,-966.9195812,0.00045961,4]
[354488821,1740529838161,-150.0,0.00045974,2]
[354488822,1740529838171,-224.7681952,0.00046027,120]
[354488823,1740529838180,-355.06,0.00046095,2]
[354488824,1740529838189,-156.5,0.00046111,2]
[354488825,1740529838199,-224.7681952,0.00046247,120]
[354488826,1740529838208,-500.0,0.000464,16]
[354488827,1740529838217,-150.0,0.00046405,2]
[354488828,1740529838226,-150.0,0.00046419,2]
[354488829,1740529838236,-165.88259998,0.00046465,120]
[354488830,1740529838245,-162.39443143,0.00046465,28]
[354488831,1740529838254,-314.00262588,0.00046465,2]
[354488832,1740529838264,-224.7681952,0.00046466,120]
[354488833,1740529838274,-9306.04885582,0.00046473,15]
[354488834,1740529838283,-1129.874,0.00046475,77]
[354488835,1740529838293,-553.60887066,0.00046475,15]
[354488836,1740529838302,-178.458,0.00046475,77]
[354488837,1740529838312,-5000.0,0.00046475,120]
[354488838,1740529838321,-1644.4037,0.00046475,2]
[354488839,1740529838330,-1000.0,0.00046475,2]
[354488840,1740529838339,-11762.6587,0.00046475,2]
[354488841,1740529838349,-6651.057,0.00046475,2]
[354488842,1740529838358,-6515.5522,0.00046475,2]
[354488843,1740529838367,-160.0,0.00046482,120]
[354488844,1740529838377,-1100.0,0.000465,16]
[354488845,1740529838386,-150.46,0.00046529,2]
[354488846,1740529838395,-420.69594941,0.0004653,58]
[354488847,1740529838586,-2109.37602059,0.0004653,58]
[354488848,1740529838596,-9306.04885577,0.00046534,15]
[354488849,1740529838606,-553.6088706,0.00046536,15]
[354488850,1740529838615,-165.88259998,0.00046538,120]
[354488851,1740529838624,-1190.19,0.00046564,120]
[354488852,1740529838634,-1190.19,0.00046564,120]
[354488853,1740529838643,-150.0,0.00046565,2]
[354488854,1740529838655,-6592.90844735,0.00046565,4]
[354488855,1740529838673,-18141.07644796,0.00046565,4]
[354488856,1740529838869,-965.89492752,0.00046565,4]
[354488867,1740529840283,-2624.6847402,0.00046565,4]
[354488868,1740529840297,-1773.305,0.00046565,4]
[354488873,1740530044609,250.0,0.00021,2]
[354488874,1740530045678,300.0,0.00023,2]
[354488875,1740530396751,10000.0,0.00025,2]
[354488876,1740530411507,292.7166,0.00019688,7]
[354488877,1740530414205,10000.0,0.00024344,30]
[354488878,1740530425756,431.99314069,0.00024344,30]
[354488889,1740531032451,-263.4449,0.00019688,7]
[354488890,1740531032460,-218.64235302,0.00024244,2]
[354488891,1740531032470,-9568.00685931,0.00024344,30]
[354488892,1740531032480,-8189.71,0.00024344,30]
[354488893,1740531032489,-334.0,0.00024344,30]
[354488894,1740531032498,-223.08436471,0.000269,4]
[354488895,1740531032508,-6665.70415835,0.000269,2]
[354488896,1740531032517,-150.0,0.00034548,10]
[354488897,1740531032527,-163.75,0.00034695,2]
[354488898,1740531032535,-150.0,0.00034899,2]
[354488899,1740531032545,-6230.12,0.000349,2]
[354488900,1740531032554,-814.51,0.000349,2]
[354488901,1740531032563,-607.84886978,0.000349,2]
[354488902,1740531032572,-894.13763708,0.00034999,10]
[354488903,1740531032583,-286.46236292,0.00034999,10]
[354488904,1740531032593,-264.07002876,0.00035,120]
[354488905,1740531032604,-491.67,0.00035,120]
[354488906,1740531032615,-958.27880894,0.00035,120]
[354488907,1740531032626,-629.63474753,0.00035,120]
[354488910,1740531032697,-583.32405185,0.00035,120]
[354488948,1740531038480,-9245.23460942,0.00035,120]
[354488949,1740531038489,-48920.33295695,0.00035,30]
[354488950,1740531038499,-999.99,0.00035,2]
[354488951,1740531038508,-4186.9,0.00035,2]
[354488952,1740531038518,-2565.0,0.000386,3]
[354488953,1740531038526,-152.0,0.0003862,3]